bitfinex/quotes_ETHUSD_20241204
["timestamp","ask_amount","ask_price","bid_price","bid_amount"]
[1733308541258,0.40089541,3730.8,3729.3,0.114]
[1733308541557,0.25044939,3730.7,3729.3,0.114]
[1733308541781,0.25044939,3730.6,3729.3,0.114]
[1733308541985,0.2099,3731.0,3729.3,0.114]
[1733308541986,0.40070843,3730.9,3729.3,0.114]
[1733308542254,0.55,3730.7,3729.4,0.02681059]
[1733308542478,0.55,3730.8,3729.3,0.114]
[1733308542703,2.67161431,3731.2,3729.3,0.114]
[1733308542704,0.55,3730.6,3729.3,0.114]
[1733308543114,2.67161431,3731.2,3729.3,0.114]
[1733308543115,0.55,3730.9,3729.3,0.114]
[1733308543409,0.55,3730.7,3729.3,0.114]
[1733308543614,0.55,3731.0,3729.3,0.114]
[1733308543942,0.55,3730.8,3729.7,0.52947266]
[1733308544096,0.55,3731.0,3729.8,0.114]
[1733308544428,0.55,3730.8,3729.8,0.114]
[1733308544722,0.55,3730.6,3729.8,0.114]
[1733308545123,0.55,3730.8,3729.8,0.114]
[1733308546320,1.5517,3731.2,3729.8,0.114]
[1733308546321,0.55,3731.0,3729.8,0.114]
[1733308546523,0.55,3730.9,3728.5,0.114]
[1733308546692,0.55,3730.9,3729.3,0.114]
[1733308546693,0.55,3730.7,3729.3,0.114]
[1733308547094,0.80003231,3730.7,3729.3,0.114]
[1733308547781,0.55,3730.4,3729.3,0.114]
[1733308548881,0.80005169,3730.4,3729.3,0.114]
[1733308549083,0.55,3730.2,3729.3,0.114]
[1733308549435,0.55,3730.0,3729.3,0.114]
[1733308550921,0.55,3729.8,3729.3,0.114]
[1733308552523,1.6591,3730.7,3729.3,0.114]
[1733308552823,0.26375,3730.8,3729.3,0.114]
[1733308553117,1.6591,3731.0,3729.3,0.114]
[1733308553323,0.25014913,3730.9,3729.3,0.114]
[1733308553478,0.25014913,3730.8,3729.3,0.114]
[1733308553684,0.25014913,3730.7,3729.3,0.114]
[1733308553944,0.55,3730.9,3729.3,0.114]
[1733308554224,0.55,3730.7,3729.3,0.114]
[1733308554583,0.55,3730.8,3729.3,0.114]
[1733308554782,0.55,3730.9,3729.3,0.114]
[1733308555014,0.80019535,3730.9,3729.3,0.114]
[1733308555319,0.55,3731.1,3729.3,0.114]
[1733308555622,0.55,3730.9,3729.3,0.114]
[1733308555984,0.55,3730.9,3728.4,0.29490959]
[1733308556197,0.80020911,3730.9,3729.9,0.53686486]
[1733308556451,0.80020911,3730.9,3730.0,0.114]
[1733308556452,0.55,3730.9,3730.0,0.114]
[1733308556726,0.24592954,3731.0,3730.0,0.114]
[1733308556727,0.55,3730.7,3730.0,0.114]
[1733308557225,0.24592954,3731.0,3730.0,0.114]
[1733308557226,0.80025716,3730.9,3730.0,0.114]
[1733308557438,0.25030865,3730.8,3730.0,0.114]
[1733308557584,0.55,3730.9,3730.0,0.114]
[1733308558386,0.25037894,3730.8,3730.0,0.114]
[1733308558715,0.55,3730.9,3730.0,0.114]
[1733308559390,0.55,3730.7,3730.0,0.114]
[1733308559586,0.55,3730.9,3730.0,0.114]
[1733308559813,0.55,3730.7,3730.0,0.114]
[1733308560289,0.24592954,3731.0,3730.0,0.114]
[1733308560290,0.55,3730.9,3730.0,0.114]
[1733308560484,0.55,3730.7,3728.6,0.114]
[1733308560729,0.55,3730.5,3728.6,0.55]
[1733308561027,0.55,3730.3,3728.7,0.114]
[1733308561228,0.55,3730.5,3728.7,0.114]
[1733308561384,0.55,3730.3,3728.7,0.114]
[1733308561599,0.55,3730.5,3729.0,0.52637365]
[1733308561825,0.55,3730.3,3729.1,0.114]
[1733308562012,0.75321503,3730.3,3729.1,0.114]
[1733308562220,0.55,3730.5,3729.1,0.114]
[1733308562424,0.25063361,3730.4,3729.1,0.114]
[1733308562597,0.80063361,3730.3,3729.1,0.114]
[1733308562802,0.55,3730.1,3729.1,0.114]
[1733308563013,0.55,3730.3,3729.1,0.114]
[1733308563237,0.55,3730.5,3729.1,0.14081416]
[1733308563436,0.40101238,3730.9,3729.1,0.14081416]
[1733308563742,0.25069024,3730.8,3729.1,0.14081012]
[1733308563900,0.24592954,3731.0,3729.1,0.14081012]
[1733308564106,0.25069074,3730.9,3729.1,0.114]
[1733308564337,0.25069074,3730.8,3729.1,0.114]
[1733308564518,0.24592954,3731.0,3729.1,0.114]
[1733308564713,0.80074276,3730.9,3729.1,0.114]
[1733308565038,0.55,3730.7,3729.1,0.114]
[1733308565646,0.55,3730.9,3729.1,0.114]
[1733308565817,0.55,3730.7,3729.1,0.114]
[1733308566015,0.55,3730.9,3729.1,0.114]
[1733308566217,0.25077342,3730.8,3729.3,0.114]
[1733308566416,0.25079253,3730.7,3729.3,0.114]
[1733308566598,0.80079253,3730.6,3729.3,0.114]
[1733308566797,0.25079253,3730.5,3729.3,0.114]
[1733308566997,0.55,3730.7,3729.3,0.114]
[1733308567246,0.55,3730.5,3729.3,0.114]
[1733308567548,1.21825666,3730.6,3729.3,0.114]
[1733308567549,0.55,3730.3,3729.3,0.114]
[1733308567758,0.55,3730.1,3729.3,0.114]
[1733308568040,0.25079936,3730.0,3729.3,0.114]
[1733308568207,0.55,3730.1,3729.3,0.114]
[1733308568401,0.25082828,3730.0,3729.3,0.114]
[1733308568602,0.95132749,3730.4,3729.3,0.114]
[1733308568603,0.55,3730.2,3729.3,0.114]
[1733308568943,0.55,3730.0,3729.3,0.114]
[1733308569351,0.55,3729.8,3729.3,0.114]
[1733308569840,0.55,3730.1,3729.3,0.114]
[1733308570146,0.55,3729.7,3728.4,0.65335609]
[1733308570303,0.55,3729.5,3728.4,0.114]
[1733308573489,0.55,3729.3,3728.4,0.114]
[1733308573896,0.25053991,3729.2,3728.4,0.114]
[1733308574075,0.95110384,3729.5,3728.4,0.114]
[1733308574259,0.55,3729.3,3728.4,0.114]
[1733308574586,0.55,3729.5,3728.4,0.114]
[1733308574785,1.52065564,3730.0,3728.4,0.114]
[1733308574991,1.17794853,3729.9,3728.4,0.114]
[1733308575154,0.25045888,3729.8,3728.4,0.114]
[1733308575359,0.25045888,3729.7,3728.4,0.114]
[1733308575570,0.4784649,3729.8,3728.4,0.114]
[1733308576099,0.55,3729.6,3728.5,0.114]
[1733308576247,0.55,3729.7,3728.5,0.114]
[1733308576447,0.55,3729.5,3728.5,0.114]
[1733308576662,0.73289225,3729.5,3728.5,0.114]
[1733308579371,0.55,3729.5,3728.5,0.114]
[1733308579573,1.39204117,3730.0,3728.5,0.114]
[1733308579801,1.11991431,3730.4,3728.6,0.02681482]
[1733308579966,0.25039677,3730.3,3728.7,0.114]
[1733308580279,1.11991431,3730.8,3728.9,0.114]
[1733308580477,0.27997858,3730.7,3729.1,0.114]
[1733308580793,0.25035517,3730.6,3729.1,0.114]
[1733308580974,1.11991431,3730.8,3729.1,0.114]
[1733308581175,0.25036904,3730.7,3729.1,0.114]
[1733308581489,0.25036904,3730.8,3729.1,0.114]
[1733308581700,2.51184785,3731.1,3729.2,0.14080908]
[1733308581917,2.51184785,3731.1,3729.2,0.114]
[1733308581918,1.63753117,3731.0,3729.2,0.114]
[1733308582219,0.25034817,3730.9,3730.0,0.114]
[1733308582412,0.45922801,3731.0,3730.0,0.114]
[1733308582717,0.25032902,3730.9,3730.0,0.114]
[1733308582900,0.45922801,3731.0,3730.0,0.114]
[1733308583217,0.25032993,3730.9,3730.0,0.114]
[1733308583576,0.25032993,3730.8,3730.0,0.114]
[1733308583775,0.55,3730.9,3730.0,0.114]
[1733308584079,0.25032642,3730.8,3730.0,0.114]
[1733308584289,0.55,3730.9,3730.0,0.114]
[1733308584614,0.25032334,3730.8,3730.0,0.114]
[1733308584923,0.55,3730.9,3730.0,0.114]
[1733308585214,0.25032367,3730.8,3730.0,0.114]
[1733308585417,0.55,3730.9,3730.0,0.114]
[1733308585582,0.25033011,3730.8,3730.0,0.114]
[1733308585776,0.55,3730.9,3730.0,0.114]
[1733308586002,0.55,3730.7,3730.0,0.114]
[1733308586316,0.55,3730.8,3730.0,0.114]
[1733308587901,0.55,3731.0,3730.0,0.114]
[1733308588115,0.55,3731.2,3730.0,0.114]
[1733308588338,0.55,3731.0,3730.0,0.114]
[1733308588682,0.40051788,3731.4,3730.0,0.114]
[1733308588683,3.0616492,3731.2,3730.0,0.114]
[1733308589021,0.55,3731.0,3730.0,0.114]
[1733308589208,0.55,3730.8,3730.0,0.114]
[1733308589814,0.55,3731.0,3730.0,0.114]
[1733308590195,0.55,3730.8,3730.0,0.114]
[1733308590392,0.55,3731.0,3730.0,0.114]
[1733308590821,0.25030957,3730.9,3730.0,0.114]
[1733308591027,0.55,3731.0,3730.0,0.114]
[1733308591331,0.76841182,3731.0,3730.0,0.114]
[1733308591925,0.25027744,3731.1,3730.0,0.114]
[1733308592084,1.11991431,3731.5,3730.0,0.114]
[1733308592286,1.17777405,3731.4,3730.0,0.114]
[1733308592490,0.2501897,3731.5,3730.0,0.114]
[1733308592784,0.1370104,3731.5,3730.0,0.114]
[1733308593617,0.55,3731.4,3730.0,0.114]
[1733308594993,1.11991431,3732.0,3730.0,0.114]
[1733308594994,0.55,3731.7,3730.0,0.114]
[1733308595216,0.25005262,3731.9,3730.6,0.114]
[1733308595422,0.25002896,3732.2,3730.6,0.114]
[1733308595620,0.25002896,3732.1,3730.6,0.114]
[1733308595828,0.80068897,3732.2,3730.6,0.114]
[1733308596038,0.55066001,3732.2,3730.8,0.114]
[1733308596782,0.25002896,3732.4,3730.8,0.114]
[1733308597189,0.55,3732.4,3730.8,0.114]
[1733308597619,0.79970281,3732.6,3730.8,0.114]
[1733308598329,1.6257,3732.5,3730.8,0.114]
[1733308598621,0.55,3732.4,3730.8,0.114]
[1733308598838,0.55,3732.2,3730.8,0.114]
[1733308599700,0.55,3732.0,3730.8,0.114]
[1733308601109,0.7996418,3732.0,3730.8,0.114]
[1733308601445,1.5954,3731.7,3730.4,0.114]
[1733308601598,0.55,3731.4,3730.0,0.114]
[1733308601802,0.55,3731.2,3728.9,0.114]
[1733308601995,0.55,3731.2,3729.2,0.53737408]
[1733308601996,0.55,3731.0,3729.2,0.53737408]
[1733308602194,0.55,3730.8,3728.9,0.114]
[1733308602399,0.7996418,3730.8,3729.0,0.53791028]
[1733308602738,0.55,3730.6,3729.0,0.53791028]
[1733308603153,0.55,3730.5,3728.9,0.114]
[1733308603300,0.7996418,3730.5,3728.9,0.114]
[1733308603840,0.55,3730.3,3728.9,0.114]
[1733308604001,0.7996418,3730.3,3728.9,0.114]
[1733308604201,0.2496418,3730.5,3728.9,0.114]
[1733308604403,1.23838108,3730.4,3728.9,0.114]
[1733308604633,0.2496418,3730.3,3728.9,0.114]
[1733308604811,0.55,3730.2,3728.9,0.114]
[1733308605398,0.7996418,3730.2,3728.9,0.114]
[1733308605619,0.55,3730.2,3728.9,0.114]
[1733308606414,0.55,3730.3,3728.9,0.114]
[1733308607337,0.55,3730.1,3728.9,0.114]
[1733308607540,0.55,3729.9,3728.9,0.114]
[1733308607739,0.80008158,3729.9,3728.9,0.114]
[1733308607972,0.55,3729.9,3728.9,0.114]
[1733308608141,0.55,3730.0,3728.9,0.114]
[1733308608677,0.80008158,3730.1,3728.9,0.114]
[1733308608837,0.55,3730.1,3728.9,0.114]
[1733308609045,0.80008158,3730.1,3728.9,0.114]
[1733308609227,0.55,3730.1,3728.9,0.114]
[1733308609431,0.80008158,3730.1,3728.9,0.114]
[1733308609626,0.55,3730.1,3728.9,0.114]
[1733308609863,0.80008158,3730.1,3728.9,0.114]
[1733308610073,0.55,3730.1,3729.9,0.09381087]
[1733308610413,0.80008158,3730.1,3729.9,0.09381087]
[1733308610534,0.55,3730.1,3729.9,0.09381087]
[1733308610729,0.80008158,3730.1,3729.9,0.09381087]
[1733308610944,1.5061,3730.0,3729.9,0.09381087]
[1733308611241,2.56547695,3730.0,3729.9,0.09381087]
[1733308611838,2.56547695,3730.0,3728.9,0.114]
[1733308612046,0.80008158,3729.9,3728.1,0.114]
[1733308612246,0.55,3729.7,3728.1,0.114]
[1733308612467,0.55,3729.5,3728.1,0.114]
[1733308612655,0.55,3729.3,3728.1,0.114]
[1733308614066,0.55,3729.3,3728.6,0.53548384]
[1733308616381,0.55,3729.5,3728.7,0.114]
[1733308616531,1.5006,3730.0,3728.7,0.114]
[1733308616868,0.55,3729.9,3728.7,0.114]
[1733308617070,1.5006,3730.3,3728.7,0.114]
[1733308617636,1.5006,3730.9,3728.7,0.114]
[1733308617869,0.17502261,3730.8,3728.7,0.114]
[1733308618908,0.55,3730.7,3728.7,0.114]
[1733308619807,0.17502261,3730.8,3728.9,0.114]
[1733308620012,1.5276,3731.3,3729.1,0.114]
[1733308620194,1.7598598,3731.6,3729.3,0.114]
[1733308620504,1.5103,3731.6,3729.3,0.114]
[1733308620707,1.5103,3731.6,3730.0,0.114]
[1733308621311,1.11991431,3731.4,3730.0,0.114]
[1733308621610,0.55,3731.3,3730.0,0.114]
[1733308621914,0.55,3731.1,3730.0,0.114]
[1733308623407,0.1093916,3731.2,3730.0,0.114]
[1733308623912,2.75776056,3731.5,3730.0,0.114]
[1733308624064,1.17506585,3731.4,3730.0,0.114]
[1733308624402,0.2494985,3731.4,3730.0,0.114]
[1733308624601,0.2494985,3731.5,3730.0,0.114]
[1733308625164,1.63787977,3731.5,3730.0,0.114]
[1733308625365,0.2494985,3731.5,3730.0,0.114]
[1733308625603,0.55,3731.3,3730.0,0.114]
[1733308625804,0.55,3731.1,3730.0,0.114]
[1733308626011,0.55,3730.9,3729.0,0.2681]
[1733308627520,0.2494985,3730.6,3729.3,0.114]
[1733308627735,0.2494985,3730.5,3729.3,0.114]
[1733308627936,0.2494985,3730.7,3729.3,0.114]
[1733308628150,0.2494985,3730.6,3729.3,0.114]
[1733308628306,0.2494985,3730.5,3729.3,0.114]
[1733308628507,0.2494985,3730.4,3729.3,0.114]
[1733308628705,0.2494985,3730.7,3729.3,0.114]
[1733308628911,0.55,3730.5,3729.3,0.114]
[1733308629120,0.55,3730.3,3729.3,0.114]
[1733308629348,0.55,3730.1,3729.3,0.114]
[1733308629545,0.2494985,3730.0,3728.7,0.114]
[1733308629746,0.55,3730.1,3728.7,0.114]
[1733308629747,1.8957985,3729.9,3728.7,0.114]
[1733308630047,0.2494985,3729.8,3728.7,0.114]
[1733308630247,1.6463,3729.9,3728.7,0.114]
[1733308630461,0.25036083,3729.8,3728.7,0.114]
[1733308630615,0.25036083,3729.7,3728.7,0.114]
[1733308630813,1.6463,3729.9,3728.7,0.114]
[1733308631016,0.25048989,3729.8,3728.7,0.114]
[1733308631218,0.25048989,3729.7,3728.7,0.114]
[1733308631440,0.25048989,3729.6,3728.7,0.114]
[1733308631645,0.25048989,3729.5,3728.7,0.114]
[1733308631912,0.25064158,3729.7,3728.7,0.114]
[1733308631913,0.39919761,3729.8,3728.7,0.114]
[1733308632224,0.90048723,3729.7,3728.7,0.114]
[1733308632414,0.50128962,3729.6,3728.7,0.114]
[1733308632617,0.55,3729.4,3728.7,0.114]
[1733308632862,2.00428962,3729.3,3728.1,0.114]
[1733308633111,0.8006447,3729.2,3728.1,0.114]
[1733308633253,0.55,3729.0,3728.1,0.114]
[1733308633586,0.55,3728.8,3728.1,0.114]
[1733308633889,0.2506447,3728.7,3728.1,0.114]
[1733308634051,0.55,3728.8,3728.1,0.114]
[1733308634253,0.25051315,3728.7,3728.1,0.114]
[1733308634451,0.55,3728.9,3728.1,0.114]
[1733308634649,0.25049195,3728.8,3728.1,0.114]
[1733308634876,0.25049195,3728.8,3728.0,0.11970832]
[1733308634877,2.98253448,3728.7,3728.0,0.11970832]
[1733308635080,0.90033448,3728.6,3728.0,0.11970832]
[1733308635264,1.5322,3728.7,3728.0,0.11970832]
[1733308635265,1.05113687,3728.5,3728.0,0.11970832]
[1733308635478,1.5322,3728.7,3728.0,0.11970832]
[1733308635479,1.6246,3728.2,3728.0,0.11970832]
[1733308635679,1.04300114,3728.1,3728.0,0.11970832]
[1733308636191,1.29337119,3728.1,3727.3,0.75]
[1733308636399,0.55,3727.9,3727.3,0.75]
[1733308636687,0.25049195,3727.8,3727.3,0.75]
[1733308636908,0.55,3727.7,3727.3,0.75]
[1733308637120,0.6850492,3727.7,3727.3,0.75]
[1733308637616,0.55,3728.0,3727.3,0.75]
[1733308641613,1.582,3728.5,3727.3,0.75]
[1733308641780,1.582,3728.5,3727.4,0.114]
[1733308642475,1.5901,3728.8,3727.4,0.114]
[1733308643387,1.83926635,3728.8,3727.3,0.75]
[1733308643577,1.5998,3728.6,3727.3,0.75]
[1733308643774,0.55,3728.5,3727.3,0.75]
[1733308644207,0.55,3728.3,3727.3,0.75]
[1733308644435,1.6126,3728.3,3727.3,0.75]
[1733308644604,0.55,3728.2,3727.3,0.75]
[1733308644811,0.21626,3728.1,3727.3,0.75]
[1733308645134,0.55,3728.0,3727.3,0.75]
[1733308646149,1.5823,3727.9,3727.3,0.75]
[1733308646330,0.55,3727.8,3727.3,0.75]
[1733308646647,0.55,3728.0,3727.3,0.75]
[1733308646848,1.5823,3727.8,3727.3,0.75]
[1733308647150,0.55,3727.7,3727.3,0.75]
[1733308648432,1.5353,3727.6,3727.3,0.75]
[1733308648616,0.55,3727.5,3727.3,0.75]
[1733308650758,2.0569,3727.4,3727.3,0.75]
[1733308650914,2.61630602,3727.4,3727.3,0.75]
[1733308651108,2.86489895,3727.4,3727.3,0.75]
[1733308651446,2.61630602,3727.4,3727.3,0.75]
[1733308651646,2.86484924,3727.4,3727.3,0.75]
[1733308651824,2.61630602,3727.4,3727.3,0.75]
[1733308652010,0.55,3727.3,3726.6,0.1594636]
[1733308652332,0.2616306,3727.2,3726.6,0.1594636]
[1733308652651,0.55,3727.1,3726.6,0.1594636]
[1733308652843,2.06630602,3727.4,3726.6,0.1594636]
[1733308652844,0.55,3727.3,3726.6,0.2734636]
[1733308653612,1.5069,3727.4,3726.6,0.2734636]
[1733308653911,0.28986031,3727.9,3726.6,0.2734636]
[1733308654138,1.78416594,3728.0,3726.6,0.2734636]
[1733308654139,0.20740263,3727.8,3726.6,0.2734636]
[1733308656019,2.0591,3727.7,3726.6,0.1594636]
[1733308656224,0.24876594,3727.6,3726.6,0.1594636]
[1733308656525,0.55,3727.5,3726.6,0.1594636]
[1733308656745,0.24876594,3727.4,3726.6,0.1594636]
[1733308656945,0.55,3727.2,3726.6,0.1594636]
[1733308657269,0.24876594,3727.1,3726.6,0.1594636]
[1733308657562,0.24935146,3727.1,3726.6,0.1594636]
[1733308657870,0.55,3727.3,3726.6,0.1594636]
[1733308658052,0.24935146,3727.2,3726.6,0.1594636]
[1733308658236,0.79935146,3727.1,3726.6,0.1594636]
[1733308658439,0.24935146,3727.5,3726.6,0.1594636]
[1733308658644,1.03989755,3727.4,3726.6,0.1594636]
[1733308658845,0.24935146,3727.3,3726.6,0.1594636]
[1733308659064,0.24935146,3727.2,3726.6,0.1594636]
[1733308659221,0.24935146,3727.1,3726.6,0.1594636]
[1733308659565,0.79054609,3727.4,3726.6,0.1594636]
[1733308659738,0.24967745,3727.3,3726.6,0.1594636]
[1733308660069,0.24967745,3727.2,3726.6,0.1594636]
[1733308660275,0.24967745,3727.1,3726.6,0.1594636]
[1733308660439,0.24967745,3727.0,3726.6,0.1594636]
[1733308660764,0.16893879,3727.1,3726.6,0.1594636]
[1733308660965,0.24982801,3727.0,3726.6,0.1594636]
[1733308661126,0.16893879,3727.1,3726.6,0.1594636]
[1733308661321,0.25001951,3727.0,3726.6,0.1594636]
[1733308661537,0.16893879,3727.1,3726.6,0.1594636]
[1733308661735,0.25003142,3727.0,3726.6,0.1594636]
[1733308661939,0.64916432,3727.3,3726.6,0.1594636]
[1733308662120,0.64951528,3727.2,3726.6,0.1594636]
[1733308662347,0.50028042,3727.1,3726.6,0.1594636]
[1733308662548,1.85133136,3727.0,3726.6,0.1594636]
[1733308662745,0.4351645,3726.9,3726.6,0.1594636]
[1733308662954,0.25003136,3726.8,3726.6,0.1594636]
[1733308663212,0.25003136,3726.7,3726.6,0.1594636]
[1733308664204,0.50048006,3726.7,3726.6,0.1594636]
[1733308664406,0.90121083,3726.7,3726.6,0.1594636]
[1733308664910,0.25003136,3726.7,3726.6,0.1594636]
[1733308665416,1.1050091,3726.7,3726.6,0.1594636]
[1733308667093,0.90136265,3726.7,3726.6,0.1594636]
[1733308667296,0.25003136,3726.7,3726.6,0.2734636]
[1733308670590,0.90132111,3726.7,3726.6,0.1594636]
[1733308676322,0.90283567,3726.7,3726.6,0.1594636]
[1733308680207,3.22176148,3726.7,3726.6,0.1594636]
[1733308680429,3.22180456,3726.7,3726.6,0.1594636]
[1733308680606,1.83041433,3726.7,3726.6,0.1594636]
[1733308681104,3.22198794,3726.7,3726.6,0.1594636]
[1733308681537,1.83049665,3726.7,3726.6,0.1594636]
[1733308682938,2.98266705,3726.7,3726.6,0.1594636]
[1733308683123,0.55,3726.6,3725.6,0.114]
[1733308683462,1.12167962,3726.3,3725.6,0.114]
[1733308683745,1.83049665,3726.2,3725.6,0.114]
[1733308683898,0.90283567,3726.1,3725.6,0.114]
[1733308684103,1.83020476,3726.0,3724.7,0.52516116]
[1733308684301,1.83020476,3726.0,3724.0,0.25]
[1733308684302,1.45283567,3725.9,3724.8,0.114]
[1733308684536,0.90283567,3725.8,3724.8,0.114]
[1733308684735,0.50139603,3725.7,3725.6,2.68408]
[1733308684950,0.9023783,3725.7,3725.6,2.68408]
[1733308685129,0.50139603,3725.7,3725.6,2.68408]
[1733308685299,0.5014848,3725.7,3725.6,2.68408]
[1733308685681,0.90244061,3725.7,3725.6,2.68408]
[1733308686139,0.78572697,3725.7,3724.8,0.114]
[1733308686346,1.6634,3725.5,3724.8,0.114]
[1733308686548,0.25089977,3725.4,3724.8,0.114]
[1733308686749,0.65133694,3725.9,3724.8,0.114]
[1733308686898,1.12167962,3726.7,3724.8,0.114]
[1733308687238,0.65146648,3726.6,3724.8,0.114]
[1733308687442,0.4009374,3726.9,3724.8,0.064]
[1733308687601,0.25062117,3726.8,3724.6,0.2681]
[1733308687901,0.4009374,3727.0,3724.6,0.2681]
[1733308688101,1.12167962,3727.3,3725.5,0.52800742]
[1733308688102,0.25064606,3726.9,3725.5,0.52800742]
[1733308688412,1.94006378,3727.5,3725.5,0.52800742]
[1733308688613,1.68251943,3727.9,3725.5,0.52800742]
[1733308688614,0.25070643,3727.4,3725.5,0.52800742]
[1733308688815,0.40113281,3727.7,3725.5,0.52800742]
[1733308689015,1.15734095,3727.6,3725.5,0.52800742]
[1733308689317,1.57952563,3727.5,3725.5,0.79610742]
[1733308689516,1.12167962,3727.2,3725.3,0.55]
[1733308689718,1.12167962,3727.2,3725.2,0.2681]
[1733308689719,1.57952563,3727.1,3725.2,0.2681]
[1733308690034,0.25070369,3727.0,3725.2,0.2681]
[1733308690204,0.25070369,3726.9,3726.1,0.53446122]
[1733308690403,4.11017475,3727.2,3726.2,0.064]
[1733308690404,0.25070369,3727.0,3726.2,0.064]
[1733308690715,0.40113281,3727.1,3726.2,0.064]
[1733308691026,1.52281243,3727.3,3726.2,0.064]
[1733308691200,1.57979333,3727.2,3726.2,0.064]
[1733308691400,1.17864487,3727.1,3726.2,0.064]
[1733308691600,2.27518959,3727.0,3726.2,0.064]
[1733308691839,1.17872157,3726.9,3726.2,0.064]
[1733308692147,2.97172411,3726.8,3726.2,0.064]
[1733308692351,1.17865859,3726.7,3726.2,0.064]
[1733308692511,0.80065678,3726.6,3725.6,0.064]
[1733308692708,2.70857962,3726.4,3725.6,0.064]
[1733308693003,4.64394663,3726.3,3724.4,0.064]
[1733308693220,4.09394663,3726.2,3723.4,0.09999885]
[1733308693427,1.91484822,3726.1,3724.1,0.064]
[1733308693622,0.25065678,3726.0,3724.1,0.064]
[1733308693822,0.55,3725.9,3724.4,0.53634104]
[1733308694042,1.7285509,3725.8,3724.5,0.064]
[1733308694245,1.5357,3725.7,3724.5,0.064]
[1733308694460,0.23362985,3725.6,3724.5,0.064]
[1733308695123,1.34362985,3725.6,3724.5,0.064]
[1733308696749,2.45362985,3725.6,3724.5,0.064]
[1733308697126,0.55,3725.5,3724.5,0.064]
[1733308698150,1.6008,3725.4,3724.5,0.064]
[1733308698349,1.6008,3725.4,3724.1,0.064]
[1733308698350,0.89396995,3725.3,3724.1,0.064]
[1733308698553,5.14418063,3725.3,3724.1,0.064]
[1733308698849,0.55,3725.1,3724.1,0.064]
[1733308699053,4.34396995,3725.3,3724.1,0.064]
[1733308699231,0.55,3725.1,3724.1,0.064]
[1733308699567,0.55,3724.9,3724.1,0.064]
[1733308699925,0.55,3725.1,3724.1,0.064]
[1733308700127,0.55,3724.9,3724.1,0.064]
[1733308701572,0.55,3724.9,3724.0,0.25]
[1733308701573,1.6592,3724.8,3724.0,0.25]
[1733308701910,0.55,3724.5,3724.0,0.25]
[1733308702198,0.55,3724.3,3724.0,0.25]
[1733308702561,0.55,3724.5,3724.0,0.25]
[1733308703771,0.55,3724.5,3724.0,0.314]
[1733308704099,1.78277609,3724.9,3724.0,0.314]
[1733308704308,0.55,3724.8,3724.0,0.314]
[1733308704517,0.45526727,3724.7,3724.0,0.314]
[1733308704884,0.55,3724.6,3724.0,0.25]
[1733308706225,0.55,3724.4,3724.0,0.25]
[1733308706515,0.55,3724.1,3724.0,0.25]
[1733308706725,2.0962,3724.1,3724.0,0.25]
[1733308706874,2.70582,3724.1,3724.0,0.25]
[1733308707327,6.70582,3724.1,3724.0,0.25]
[1733308709142,5.15962,3724.1,3724.0,0.25]
[1733308711284,9.54742,3724.1,3724.0,0.25]
[1733308711522,0.55,3723.9,3722.9,0.1594636]
[1733308711708,0.55,3723.9,3723.0,0.064]
[1733308712312,4.0,3724.0,3723.0,0.064]
[1733308712930,1.5678,3723.9,3723.0,0.064]
[1733308713627,0.60962,3724.1,3723.0,0.064]
[1733308713793,0.55,3724.1,3723.0,0.064]
[1733308717405,0.24891074,3724.4,3723.0,0.064]
[1733308717612,0.55,3724.4,3723.0,0.064]
[1733308719221,0.79892177,3724.4,3723.0,0.064]
[1733308719579,0.24892177,3724.4,3723.0,0.064]
[1733308719734,0.55,3724.4,3723.0,0.064]
[1733308719933,0.88551527,3724.4,3723.0,0.064]
[1733308721633,0.55,3724.2,3723.0,0.064]
[1733308721843,0.55,3724.3,3723.0,0.064]
[1733308722212,0.24988805,3724.2,3723.0,0.064]
[1733308722518,0.55,3724.3,3723.0,0.064]
[1733308722693,0.55,3724.1,3723.0,0.064]
[1733308725368,1.6569,3723.9,3723.0,0.064]
[1733308725673,0.55,3723.7,3723.0,0.064]
[1733308725831,1.6569,3723.9,3723.0,0.064]
[1733308726027,0.80018493,3723.8,3722.9,0.1594636]
[1733308726227,2.0709,3723.6,3722.9,0.1594636]
[1733308726467,0.55,3723.4,3722.9,0.1594636]
[1733308726667,0.55,3723.5,3722.9,0.1594636]
[1733308727272,0.25035914,3723.4,3722.9,0.1594636]
[1733308727482,1.7534371,3724.2,3723.0,0.064]
[1733308727772,0.46737491,3724.1,3723.0,0.064]
[1733308727955,0.2073371,3724.2,3723.0,0.064]
[1733308728337,0.25056244,3724.1,3723.0,0.064]
[1733308728533,1.5461,3724.5,3723.0,0.064]
[1733308728769,0.6514833,3724.4,3723.0,0.064]
[1733308728969,0.2505705,3724.3,3723.0,0.064]
[1733308729146,0.2505705,3724.2,3723.0,0.064]
[1733308729344,0.2505705,3724.1,3723.0,0.064]
[1733308729670,0.55,3724.2,3723.0,0.064]
[1733308730045,0.25066909,3724.1,3723.0,0.064]